bitfinex/quotes_SOLUSD_20241223
["timestamp","ask_amount","ask_price","bid_price","bid_amount"]
[1734935021031,0.683076,184.13,184.09,24.5914884]
[1734935022563,0.683076,184.13,184.07,23.776884]
[1734935022759,0.683076,184.13,184.07,24.59151368]
[1734935024162,0.683076,184.13,184.07,50.10740225]
[1734935025168,0.683076,184.13,184.07,26.33051825]
[1734935025335,26.19896457,184.13,184.05,25.51588857]
[1734935025654,25.51588857,184.09,184.01,25.51588857]
[1734935025835,25.51588857,184.07,183.99,25.51588857]
[1734935027555,0.32078033,184.06,183.99,25.51588857]
[1734935027856,25.51588857,184.07,183.99,25.51588857]
[1734935028646,25.51588857,184.07,183.97,0.81490628]
[1734935028647,25.8366689,184.06,183.98,25.51588857]
[1734935029330,25.51588857,184.06,183.99,0.8150471]
[1734935029546,25.51588857,184.08,184.0,25.51588857]
[1734935030062,0.32078033,184.07,184.0,25.51588857]
[1734935030243,25.51588857,184.06,184.0,25.51588857]
[1734935030443,0.32078033,184.05,183.98,25.51588857]
[1734935030657,25.51588857,184.06,183.98,25.51588857]
[1734935030973,25.51588857,184.06,183.98,26.330943]
[1734935031258,25.51588857,184.06,184.0,25.51588857]
[1734935032279,25.51588857,184.06,183.99,25.51588857]
[1734935032560,25.51588857,184.07,183.99,25.51588857]
[1734935032789,25.51588857,184.08,184.01,25.51588857]
[1734935033065,25.51588857,184.07,183.99,49.29277257]
[1734935033266,25.51588857,184.07,184.0,25.51588857]
[1734935033456,25.51588857,184.08,184.0,25.51588857]
[1734935033968,0.32078033,184.07,184.0,25.51588857]
[1734935034160,25.51588857,184.08,184.0,25.51588857]
[1734935034349,0.32078033,184.07,184.0,25.51588857]
[1734935036264,25.51588857,184.07,184.0,25.51588857]
[1734935037182,25.51588857,184.04,183.96,26.33096771]
[1734935037348,25.51588857,184.04,183.96,25.51588857]
[1734935037549,25.51588857,184.02,183.96,25.51588857]
[1734935037877,25.51588857,184.0,183.92,25.51588857]
[1734935038045,6.0042,184.03,183.9,0.81524482]
[1734935038046,25.51588857,183.98,183.9,26.33113339]
[1734935038248,25.51588857,183.98,183.9,25.51588857]
[1734935038453,25.51588857,183.98,183.88,0.81534672]
[1734935038454,25.51588857,183.98,183.91,25.51588857]
[1734935038653,25.51588857,183.99,183.91,25.51588857]
[1734935039554,25.51588857,184.0,183.92,25.51588857]
[1734935039960,0.32078033,183.99,183.92,25.51588857]
[1734935040365,25.51588857,183.98,183.9,25.51588857]
[1734935040567,27.12988857,183.98,183.9,25.51588857]
[1734935041082,27.12988857,183.98,183.91,0.81530433]
[1734935041265,1.614,183.98,183.95,23.776884]
[1734935041580,25.51588857,184.02,183.95,24.59200233]
[1734935042082,25.51588857,184.02,183.94,25.51588857]
[1734935043191,0.32078033,184.01,183.94,25.51588857]
[1734935043368,25.51588857,184.02,183.95,24.59209932]
[1734935043885,7.6293,184.03,183.96,25.51588857]
[1734935044483,1.6251,184.03,183.97,24.59200194]
[1734935044649,1.6251,184.03,183.97,23.776884]
[1734935045275,25.51588857,184.02,183.94,25.51588857]
[1734935045576,0.32078033,184.01,183.94,25.51588857]
[1734935045751,25.51588857,184.0,183.92,25.51588857]
[1734935045950,25.51588857,183.98,183.9,25.51588857]
[1734935046147,25.51588857,183.98,183.88,26.33119318]
[1734935046148,25.51588857,183.96,183.88,26.33119318]
[1734935046368,25.51588857,183.96,183.88,25.51588857]
[1734935047689,1.6064,183.95,183.88,25.51588857]
[1734935047881,25.51588857,183.94,183.86,26.33139442]
[1734935049464,25.51588857,183.9,183.83,0.81548093]
[1734935049663,25.51588857,183.88,183.8,25.51588857]
[1734935049993,25.51588857,183.86,183.78,25.51588857]
[1734935051985,1.659,183.89,183.84,25.51588857]
[1734935052284,6.1485,183.94,183.88,25.51588857]
[1734935052469,1.6352,183.95,183.89,50.10820867]
[1734935052895,1.6352,183.95,183.9,25.51588857]
[1734935053064,1.6352,183.95,183.91,50.10810919]
[1734935053390,1.6352,183.95,183.91,24.59222062]
[1734935053685,1.6352,183.95,183.91,50.10810919]
[1734935054268,1.6352,183.95,183.91,66.12582926]
[1734935054490,43.09850864,183.99,183.91,66.12582926]
[1734935056070,1.5649,183.99,183.94,23.776884]
[1734935056258,1.5649,183.99,183.96,23.776884]
[1734935056455,1.00385633,184.13,183.97,42.34870109]
[1734935056456,1.5897,184.04,183.97,42.34870109]
[1734935056659,1.5897,184.04,183.98,23.776884]
[1734935056896,1.5897,184.04,183.99,42.34857165]
[1734935057199,1.5897,184.04,183.99,41.53360864]
[1734935057404,0.32078033,184.03,183.97,41.53360864]
[1734935057571,41.85438897,184.03,183.96,23.776884]
[1734935057895,41.53360864,184.01,183.93,41.53360864]
[1734935058064,41.53360864,184.01,183.94,24.59215165]
[1734935058482,41.53360864,184.01,183.93,41.53360864]
[1734935058792,0.32078033,184.0,183.93,41.53360864]
[1734935058961,41.53360864,183.99,183.91,41.53360864]
[1734935059975,41.53360864,184.01,183.93,41.53360864]
[1734935060173,1.91048033,184.04,183.95,41.53360864]
[1734935060493,41.85438897,184.03,183.95,41.53360864]
[1734935060692,41.53360864,184.03,183.95,41.53360864]
[1734935061292,41.53360864,184.03,183.96,24.592034]
[1734935061697,1.5897,184.04,183.97,41.53360864]
[1734935061869,1.5897,184.04,183.98,23.776884]
[1734935062391,1.5897,184.04,183.98,24.59192221]
[1734935062984,1.5897,184.04,183.99,41.53360864]
[1734935064595,1.5897,184.04,183.99,42.34857981]
[1734935064894,1.5897,184.04,183.99,41.53360864]
[1734935065688,1.5897,184.04,183.99,42.34860221]
[1734935065993,1.5897,184.04,184.0,23.776884]
[1734935066188,43.07740864,184.09,184.01,42.34848676]
[1734935066498,0.32078033,184.08,184.0,23.776884]
[1734935066875,41.53360864,184.07,184.0,23.776884]
[1734935067071,1.5438,184.09,183.97,0.81491743]
[1734935067072,41.53360864,184.03,183.97,0.81491743]
[1734935067275,0.32078033,184.02,183.94,41.53360864]
[1734935067477,41.53360864,184.03,183.94,41.53360864]
[1734935067905,41.53360864,184.03,183.95,0.81516148]
[1734935068074,41.53360864,184.03,183.96,41.53360864]
[1734935068676,0.32078033,184.02,183.94,41.53360864]
[1734935068875,41.53360864,184.01,183.94,41.53360864]
[1734935070219,1.5079,184.0,183.94,41.53360864]
[1734935071003,1.82868033,184.0,183.92,41.53360864]
[1734935072279,1.5079,184.0,183.93,24.59219967]
[1734935075219,1.5079,184.0,183.95,23.776884]
[1734935075513,6.4363,184.05,183.98,41.53360864]
[1734935075514,49.54670864,184.05,183.98,41.53360864]
[1734935075816,8.0131,184.05,183.99,23.776884]
[1734935076390,1.5768,184.05,183.99,23.776884]
[1734935076599,1.5768,184.05,184.0,0.81494374]
[1734935077404,1.5768,184.05,184.01,24.5918759]
[1734935078313,42.99337223,184.1,184.02,41.61626223]
[1734935078497,42.99337223,184.1,184.03,24.59164913]
[1734935078694,42.99337223,184.1,184.05,23.776884]
[1734935079138,41.49077223,184.12,184.05,24.59162967]
[1734935080815,41.49077223,184.12,184.05,23.776884]
[1734935081520,41.49077223,184.08,184.0,41.49077223]
[1734935082222,41.49077223,184.08,184.01,0.81492903]
[1734935082899,41.49077223,184.06,183.98,41.49077223]
[1734935083203,41.49077223,184.06,183.99,0.81502729]
[1734935084196,1.5859,184.07,184.02,41.49077223]
[1734935084396,1.5859,184.07,184.03,24.59167547]
[1734935085333,1.5859,184.07,184.03,23.776884]
[1734935085886,41.49077223,184.1,184.03,24.59168643]
[1734935086201,1.5954,184.12,184.07,23.776884]
[1734935086399,1.5954,184.12,184.08,0.81461968]
[1734935086630,1.5954,184.12,184.09,23.776884]
[1734935086792,0.683076,184.13,184.1,0.81450556]
[1734935087497,0.683076,184.13,184.09,23.776884]
[1734935087696,0.683076,184.13,184.09,24.59143938]
[1734935087891,0.683076,184.13,184.06,61.49077223]
[1734935088092,0.683076,184.13,184.08,23.776884]
[1734935088409,0.683076,184.13,184.1,23.776884]
[1734935088722,0.683076,184.13,184.07,23.776884]
[1734935090117,41.49077223,184.12,184.04,42.30546963]
[1734935090426,41.49077223,184.12,184.05,23.776884]
[1734935091533,0.683076,184.13,184.06,42.3055176]
[1734935091741,0.683076,184.13,184.07,23.776884]
[1734935091911,0.683076,184.13,184.08,0.81459164]
[1734935094427,0.683076,184.13,184.09,23.776884]
[1734935094631,0.683076,184.13,184.1,0.81452191]
[1734935094924,0.683076,184.13,184.1,42.30529414]
[1734935097231,0.683076,184.13,184.1,41.49077223]
[1734935097833,0.683076,184.13,184.09,23.776884]
[1734935098132,0.683076,184.13,184.08,41.49077223]
[1734935100218,0.683076,184.13,184.08,23.776884]
[1734935100814,25.51404714,184.12,184.03,20.81459503]
[1734935101133,0.683076,184.13,184.07,25.51404714]
[1734935101308,0.683076,184.13,184.08,50.10552255]
[1734935101810,0.683076,184.13,184.08,26.32863855]
[1734935102436,0.683076,184.13,184.07,25.51404714]
[1734935102638,1.00385633,184.13,184.06,25.51404714]
[1734935102850,25.51404714,184.09,184.01,26.32879222]
[1734935103024,1.6382,184.08,184.01,26.32879222]
[1734935103334,1.6382,184.08,184.01,14.40084508]
[1734935103535,8.422076,184.13,184.06,25.51404714]
[1734935103737,28.15610347,184.13,184.05,25.51404714]
[1734935103924,25.51404714,184.11,184.06,23.776884]
[1734935104128,2.321276,184.13,184.07,25.51404714]
[1734935104329,2.321276,184.13,184.08,24.5914777]
[1734935104525,0.683076,184.13,184.1,23.776884]
[1734935104724,0.683076,184.13,184.09,25.51404714]
[1734935105032,26.19712314,184.13,184.07,23.776884]
[1734935105347,0.683076,184.13,184.07,23.776884]
[1734935105545,26.19712314,184.13,184.04,25.51404714]
[1734935105847,25.51404714,184.11,184.04,25.51404714]
[1734935106931,25.51404714,184.11,184.05,23.776884]
[1734935107328,1.5021,184.1,184.05,23.776884]
[1734935107533,25.83482747,184.09,184.02,25.51404714]
[1734935107723,1.5021,184.1,184.0,26.32880701]
[1734935108044,27.01614714,184.1,184.02,25.51404714]
[1734935108251,1.5021,184.1,184.06,25.51404714]
[1734935108470,0.683076,184.13,184.07,0.81461928]
[1734935108755,0.683076,184.13,184.08,23.776884]
[1734935109140,0.683076,184.13,184.08,49.29093114]
[1734935110455,0.683076,184.13,184.1,23.776884]
[1734935110755,0.683076,184.13,184.12,49.29093114]
[1734935113243,0.683076,184.13,184.12,25.51404714]
[1734935113570,0.683076,184.13,184.1,23.776884]
[1734935114468,0.683076,184.13,184.07,26.32855213]
[1734935114639,25.51404714,184.11,184.05,25.51404714]
[1734935114838,1.5795,184.1,184.03,25.51404714]
[1734935115039,25.51404714,184.09,184.01,25.51404714]
[1734935116368,25.51404714,184.09,184.02,23.776884]
[1734935116547,0.32078033,184.08,184.02,23.776884]
[1734935116867,0.32078033,184.08,183.99,25.51404714]
[1734935116868,25.51404714,184.07,183.99,25.51404714]
[1734935117051,0.32078033,184.06,183.99,25.51404714]
[1734935117249,25.51404714,184.05,183.97,25.51404714]
[1734935117560,0.32078033,184.04,183.97,25.51404714]
[1734935118552,25.51404714,184.05,183.97,25.51404714]
[1734935118953,0.32078033,184.04,183.97,25.51404714]
[1734935119153,25.51404714,184.05,183.97,25.51404714]
[1734935119454,0.32078033,184.04,183.97,25.51404714]
[1734935119961,25.51404714,184.05,183.97,25.51404714]
[1734935120165,25.51404714,184.09,184.02,25.51404714]
[1734935120465,27.41432747,184.1,184.02,25.51404714]
[1734935120767,25.51404714,184.09,184.03,23.776884]
[1734935121064,0.32078033,184.08,184.02,25.51404714]
[1734935121459,25.51404714,184.09,184.02,25.51404714]
[1734935121655,0.32078033,184.08,184.02,25.51404714]
[1734935121860,25.51404714,184.07,184.0,25.51404714]
[1734935122047,0.32078033,184.06,183.98,25.51404714]
[1734935122248,0.32078033,184.06,183.99,23.776884]
[1734935122471,25.51404714,184.07,184.0,25.51404714]
[1734935122845,25.51404714,184.07,184.0,26.32899642]
[1734935123067,25.51404714,184.07,184.0,25.51404714]
[1734935123271,25.51404714,184.09,184.01,23.776884]
[1734935123562,21.90028033,184.1,184.03,23.776884]
[1734935123563,27.41432747,184.1,184.03,23.776884]
[1734935124871,27.41432747,184.1,184.02,25.51404714]
[1734935125074,25.51404714,184.08,184.0,25.51404714]
[1734935125246,0.32078033,184.07,184.0,25.51404714]
[1734935125989,25.51404714,184.06,183.98,25.51404714]
[1734935126153,25.51404714,184.06,183.99,23.776884]
[1734935126455,25.51404714,184.06,184.0,25.51404714]
[1734935128185,0.32078033,184.05,184.0,25.51404714]
[1734935128387,25.51404714,184.06,184.0,25.51404714]
[1734935129678,27.09354714,184.1,184.02,25.51404714]
[1734935129885,1.5795,184.1,184.04,25.51404714]
[1734935130066,1.5795,184.1,184.06,25.51404714]
[1734935130573,1.5795,184.1,184.02,25.51404714]
[1734935130754,27.41432747,184.1,184.03,23.776884]
[1734935130950,27.09354714,184.1,184.03,23.776884]
[1734935131260,1.5795,184.1,184.04,25.51404714]
[1734935131566,1.5795,184.1,184.05,23.776884]
[1734935132192,1.5795,184.1,184.07,23.776884]
[1734935132359,6.714476,184.13,184.07,23.776884]
[1734935132360,0.683076,184.13,184.07,23.776884]
[1734935132555,0.683076,184.13,184.09,23.776884]
[1734935132851,0.683076,184.13,184.07,24.59148197]
[1734935133581,0.683076,184.13,184.07,23.776884]
[1734935134108,1.00385633,184.13,184.07,23.776884]
[1734935135080,25.51404714,184.12,184.04,25.51404714]
[1734935135279,25.51404714,184.12,184.05,23.776884]
[1734935135791,0.32078033,184.11,184.04,25.51404714]
[1734935136488,27.14214714,184.1,184.02,25.51404714]
[1734935136665,25.51404714,184.08,184.0,25.51404714]
[1734935136859,0.32078033,184.07,184.0,25.51404714]
[1734935137061,33.32164714,184.1,184.02,25.51404714]
[1734935137796,33.32164714,184.1,184.03,23.776884]
[1734935138863,0.32078033,184.09,184.03,23.776884]
[1734935139583,0.32078033,184.09,184.02,25.51404714]
[1734935139584,25.51404714,184.06,183.98,25.51404714]
[1734935140995,0.32078033,184.05,183.99,23.776884]
[1734935144199,25.51404714,184.02,183.94,25.51404714]
[1734935144367,25.51404714,184.02,183.95,25.51404714]
[1734935144568,25.51404714,184.03,183.96,25.51404714]
[1734935146197,25.51404714,184.03,183.97,23.776884]
[1734935146496,1.6307,184.04,183.98,25.51404714]
[1734935146715,1.6307,184.04,183.99,23.776884]
[1734935148203,25.51404714,184.02,183.94,25.51404714]
[1734935148383,0.32078033,184.01,183.94,25.51404714]
[1734935149177,25.51404714,184.02,183.94,25.51404714]
[1734935149787,25.51404714,184.02,183.95,23.776884]
[1734935150699,0.32078033,184.01,183.95,23.776884]
[1734935151103,31.69354714,184.02,183.95,23.776884]
[1734935151907,0.32078033,184.01,183.95,23.776884]
[1734935153204,25.51404714,183.98,183.91,23.776884]
[1734935153579,0.32078033,183.97,183.91,23.776884]
[1734935153779,0.32078033,183.97,183.88,25.51404714]
[1734935153780,25.51404714,183.94,183.88,25.51404714]
[1734935154090,25.51404714,184.05,183.81,55.74409972]
[1734935154091,25.51404714,183.9,183.82,25.51404714]
[1734935154291,25.51404714,183.88,183.81,8.49708643]
[1734935154488,25.83482747,183.87,183.81,8.49708643]
[1734935154902,25.51404714,183.89,183.8,25.51404714]
[1734935155094,0.32078033,183.88,183.8,25.51404714]
[1734935155277,27.06664714,183.87,183.8,25.51404714]
[1734935155480,0.32078033,183.86,183.78,25.51404714]
[1734935156705,27.06664714,183.87,183.81,23.776884]
[1734935158283,0.32078033,183.86,183.81,23.776884]
[1734935158984,0.32078033,183.86,183.76,25.51404714]
[1734935158985,25.51404714,183.85,183.76,25.51404714]
[1734935159186,0.32078033,183.84,183.76,25.51404714]
[1734935159411,6.70578033,183.84,183.76,25.51404714]
[1734935160209,25.51404714,183.83,183.76,25.51404714]
[1734935160509,0.32078033,183.82,183.76,25.51404714]
[1734935160806,0.32078033,183.82,183.77,23.776884]
[1734935161014,0.32078033,183.82,183.76,25.51404714]
[1734935161015,6.385,183.84,183.79,23.776884]
[1734935161688,27.06664714,183.87,183.81,23.776884]
[1734935161894,0.32078033,183.86,183.81,23.776884]
[1734935162401,0.32078033,183.86,183.8,25.51404714]
[1734935162610,27.06664714,183.87,183.81,23.776884]
[1734935164800,1.5526,183.87,183.81,23.776884]
[1734935166506,1.5526,183.87,183.83,23.776884]
[1734935166707,1.5526,183.87,183.85,23.776884]
[1734935168485,0.32078033,184.04,183.86,25.51404714]
[1734935168486,1.5072,183.92,183.86,25.51404714]
[1734935168696,1.5072,183.92,183.89,23.776884]
[1734935168891,1.5072,183.92,183.9,25.51404714]
[1734935169294,1.5072,183.92,183.89,23.776884]
[1734935170310,1.5072,183.92,183.86,25.51404714]
[1734935170791,1.82798033,183.92,183.86,25.51404714]
[1734935171211,1.5072,183.92,183.86,25.51404714]
[1734935171713,1.5072,183.92,183.87,23.776884]
[1734935172606,1.5072,183.92,183.89,23.776884]
[1734935173889,1.5072,183.92,183.86,25.51404714]
[1734935174402,1.82798033,183.92,183.87,23.776884]
[1734935174801,1.5072,183.92,183.87,23.776884]
[1734935175112,1.82798033,183.92,183.87,23.776884]
[1734935175617,1.5072,183.92,183.87,23.776884]
[1734935176389,1.82798033,183.92,183.87,23.776884]
[1734935176822,1.82798033,183.92,183.86,25.51404714]
[1734935177116,25.51404714,183.91,183.84,23.776884]
[1734935177714,0.32078033,183.9,183.84,23.776884]
[1734935178918,0.32078033,183.9,183.83,25.51404714]
[1734935179296,25.51404714,183.91,183.83,25.51404714]
[1734935179618,0.32078033,183.9,183.83,25.51404714]
[1734935180307,0.32078033,183.9,183.84,23.776884]
[1734935180493,25.51404714,183.91,183.84,23.776884]
[1734935180817,0.32078033,183.9,183.84,23.776884]
[1734935181203,25.51404714,183.91,183.84,23.776884]
[1734935181612,1.5072,183.92,183.87,23.776884]
[1734935182130,1.5072,183.92,183.88,25.51404714]
[1734935182294,1.5072,183.92,183.87,24.59247561]
[1734935182295,1.5072,183.92,183.89,25.51404714]
[1734935182614,1.5072,183.92,183.9,23.776884]
[1734935182917,1.5443,183.97,183.92,23.776884]
[1734935183123,1.5443,183.97,183.94,23.776884]
[1734935185319,27.05834714,184.02,183.94,50.10619483]
[1734935185494,1.5443,184.02,183.96,25.51404714]
[1734935185695,27.05834714,184.02,183.97,23.776884]
[1734935185910,25.51404714,184.01,183.94,25.51404714]
[1734935186099,25.51404714,184.0,183.93,25.51404714]
[1734935186417,0.32078033,183.99,183.94,23.776884]
[1734935186821,0.32078033,183.99,183.93,23.776884]
[1734935187123,0.32078033,183.99,183.93,49.29093114]
[1734935187641,25.51404714,184.0,183.93,49.29093114]
[1734935190130,0.32078033,183.99,183.93,49.29093114]
[1734935190460,0.32078033,183.99,183.93,23.776884]
[1734935190730,25.51404714,184.0,183.93,23.776884]
[1734935190915,25.51404714,184.0,183.93,49.29093114]
[1734935191118,25.51404714,184.01,183.94,25.51404714]
[1734935191314,25.51404714,183.97,183.93,23.776884]
[1734935191627,25.83482747,183.96,183.89,25.51404714]
[1734935191817,1.5962,183.94,183.87,25.51404714]
[1734935192136,1.5962,183.94,183.86,25.51404714]
[1734935192137,25.51404714,183.93,183.86,25.51404714]
[1734935192304,27.11024714,183.94,183.87,25.51404714]
[1734935193235,27.11024714,183.94,183.88,23.776884]
[1734935193718,1.5962,183.94,183.88,49.29093114]
[1734935193917,27.43102747,183.94,183.88,23.776884]
[1734935194233,25.51404714,183.93,183.87,23.776884]
[1734935194437,0.32078033,183.92,183.86,23.776884]
[1734935194642,25.83482747,183.92,183.86,23.776884]
[1734935195455,25.83482747,183.92,183.85,23.776884]
[1734935195828,25.83482747,183.92,183.84,25.51404714]
[1734935197244,25.83482747,183.92,183.85,23.776884]
[1734935198019,27.11024714,183.94,183.87,49.29093114]
[1734935198220,1.5962,183.94,183.88,25.51404714]
[1734935198448,1.5962,183.94,183.89,23.776884]
[1734935198757,1.5962,183.94,183.88,23.776884]
[1734935199327,0.32078033,183.93,183.88,23.776884]
[1734935199531,25.83482747,183.93,183.88,23.776884]
[1734935200546,25.51404714,183.93,183.88,23.776884]
[1734935201950,0.32078033,183.92,183.88,23.776884]
[1734935202154,25.51404714,183.93,183.88,23.776884]
[1734935202958,1.5962,183.94,183.88,23.776884]
[1734935203465,25.51404714,183.91,183.83,25.51404714]
[1734935203635,0.32078033,183.9,183.83,25.51404714]
[1734935204437,25.51404714,183.89,183.81,25.51404714]
[1734935205367,25.51404714,183.89,183.82,23.776884]
[1734935205844,25.51404714,183.91,183.84,23.776884]
[1734935207164,0.32078033,183.9,183.84,23.776884]
[1734935207531,25.51404714,183.91,183.84,23.776884]
[1734935207855,25.51404714,183.93,183.86,23.776884]
[1734935208740,1.5962,183.94,183.88,23.776884]
[1734935214472,1.5962,183.94,183.89,26.32952484]
[1734935214675,0.32078033,184.04,183.89,26.32952484]
[1734935214676,1.5111,184.0,183.94,23.776884]
[1734935214841,1.5111,184.0,183.94,24.59209794]
[1734935215039,1.5111,184.0,183.97,25.51404714]
[1734935215237,18.15870792,184.09,183.97,25.51404714]
[1734935215238,1.5111,184.05,184.02,20.0]
[1734935215475,18.15870792,184.09,184.03,25.51404714]
[1734935215680,18.15870792,184.09,184.04,23.776884]
[1734935215839,8.49719886,184.09,184.04,23.776884]
[1734935216260,1.5828,184.1,184.04,23.776884]
[1734935217357,25.51404714,184.11,184.05,0.12549]
[1734935217556,1.6389,184.15,184.09,23.776884]
[1734935218063,1.95968033,184.15,184.09,23.776884]
[1734935219105,1.6389,184.15,184.09,23.776884]
[1734935219890,1.95968033,184.15,184.09,23.776884]
[1734935220105,25.51404714,184.14,184.09,23.776884]
[1734935220607,25.51404714,184.14,184.02,0.8145989]
[1734935220608,25.51404714,184.12,184.07,23.776884]
[1734935220761,0.32078033,184.11,184.04,25.51404714]
[1734935221097,25.51404714,184.12,184.04,25.51404714]
[1734935221500,0.32078033,184.11,184.04,25.51404714]
[1734935222108,0.32078033,184.11,184.05,23.776884]
[1734935222608,25.51404714,184.1,184.04,25.51404714]
[1734935222763,0.32078033,184.09,184.02,25.51404714]
[1734935222963,25.51404714,184.1,184.02,25.51404714]
[1734935223163,0.32078033,184.09,184.02,25.51404714]
[1734935224168,0.32078033,184.09,184.03,23.776884]
[1734935225217,25.83482747,184.09,184.02,23.776884]
[1734935225511,25.83482747,184.09,183.96,33.11904714]
[1734935225512,25.51404714,184.07,184.0,25.51404714]
[1734935225803,1.88038033,184.06,183.98,25.51404714]
[1734935226704,1.88038033,184.06,183.99,23.776884]
[1734935228383,1.5596,184.06,184.01,23.776884]
[1734935228582,27.17144714,184.09,184.03,23.776884]
[1734935228792,0.32078033,184.08,184.03,23.776884]
[1734935229196,27.17144714,184.09,184.03,23.776884]
[1734935229410,1.6574,184.09,184.03,23.776884]
[1734935230426,1.6574,184.09,184.05,23.776884]
[1734935232841,2.218376,184.13,184.09,23.776884]
[1734935235006,2.218376,184.13,184.08,23.776884]
[1734935236938,25.51404714,184.11,184.03,25.51404714]
[1734935237450,0.32078033,184.1,184.03,25.51404714]
[1734935237763,25.51404714,184.11,184.03,25.51404714]
[1734935238272,2.218376,184.13,184.07,25.51404714]
[1734935238576,2.218376,184.13,184.08,23.776884]
[1734935240045,2.218376,184.13,184.05,25.51404714]
[1734935240046,0.32078033,184.12,184.05,25.51404714]
[1734935240254,0.32078033,184.12,184.06,23.776884]
[1734935240745,25.51404714,184.11,184.06,23.776884]
[1734935240948,0.32078033,184.1,184.06,23.776884]
[1734935241342,0.32078033,184.1,184.03,25.51404714]
[1734935241530,25.51404714,184.09,184.01,25.51404714]
[1734935241734,25.51404714,184.07,184.01,25.51404714]
[1734935241935,0.32078033,184.06,184.01,25.51404714]
[1734935242163,0.32078033,184.06,183.99,25.51404714]
[1734935242845,1.5784,184.05,183.98,25.51404714]
[1734935243424,1.89918033,184.05,183.98,25.51404714]
[1734935243984,25.51404714,184.04,183.96,25.51404714]
[1734935244182,0.32078033,184.03,183.96,25.51404714]
[1734935245516,0.32078033,184.03,183.97,23.776884]
[1734935245717,25.51404714,184.01,183.93,25.51404714]
[1734935246023,25.51404714,183.99,183.93,25.51404714]
[1734935246231,0.32078033,183.98,183.91,25.51404714]
[1734935247535,25.51404714,183.95,183.87,25.51404714]
[1734935247722,25.83482747,183.94,183.86,25.51404714]
[1734935247904,25.83482747,183.94,183.81,23.8038301]
[1734935247905,25.51404714,183.93,183.85,25.51404714]
[1734935248104,1.6256,183.89,183.83,25.51404714]
[1734935248328,25.83482747,183.88,183.81,25.51404714]
[1734935248641,25.51404714,183.87,183.79,25.51404714]
[1734935248804,25.51404714,183.85,183.78,25.51404714]
[1734935249000,0.32078033,183.84,183.78,25.51404714]
[1734935249235,0.32078033,183.84,183.79,25.51404714]
[1734935249401,25.51404714,183.85,183.79,25.51404714]
[1734935249599,0.32078033,183.84,183.79,25.51404714]
[1734935250529,0.32078033,183.86,183.79,25.51404714]
[1734935251238,0.32078033,183.86,183.8,23.776884]
[1734935251441,25.51404714,183.87,183.8,23.776884]
[1734935251442,25.83482747,183.87,183.8,23.776884]
[1734935251914,0.32078033,183.87,183.8,23.776884]
[1734935252229,0.32078033,183.87,183.8,65.35996557]
[1734935255196,41.9038619,183.87,183.8,65.35996557]
[1734935255402,41.9038619,183.87,183.78,41.58308157]
[1734935255931,41.58308157,183.85,183.78,41.58308157]
[1734935256134,41.58308157,183.83,183.75,61.58308157]
[1734935256438,6.5092,183.88,183.75,61.58308157]
[1734935256439,41.9038619,183.87,183.79,41.58308157]
[1734935257220,41.9038619,183.87,183.8,23.776884]
[1734935258649,6.5092,183.88,183.81,41.58308157]
[1734935258842,6.82998033,183.88,183.82,23.776884]
[1734935260442,0.32078033,183.88,183.83,41.58308157]
[1734935260645,1.6256,183.89,183.86,23.776884]
[1734935260805,1.5778,183.94,183.88,23.776884]
[1734935261558,1.89858033,183.94,183.88,23.776884]
[1734935261712,1.5778,183.94,183.88,23.776884]
[1734935262473,1.5778,183.94,183.89,41.70857157]
[1734935262685,43.14388157,183.99,183.92,23.776884]
[1734935262852,0.32078033,183.98,183.92,23.776884]
[1734935263734,41.58308157,183.97,183.92,23.776884]
[1734935263937,0.32078033,183.96,183.92,23.776884]
[1734935264174,41.58308157,183.97,183.92,23.776884]
[1734935265377,0.32078033,183.96,183.92,23.776884]
[1734935266373,41.58308157,183.97,183.92,23.776884]
[1734935267683,43.14388157,183.99,183.92,23.776884]
[1734935268737,41.58308157,183.97,183.92,23.776884]
[1734935268934,0.32078033,183.96,183.92,23.776884]
[1734935269589,41.58308157,183.97,183.92,23.776884]
[1734935271755,0.32078033,183.96,183.92,23.776884]
[1734935274771,25.56587804,183.97,183.92,23.776884]
[1734935275194,0.32078033,183.96,183.92,23.776884]
[1734935275373,0.32078033,183.96,183.89,25.56587804]
[1734935275578,0.32078033,183.96,183.9,23.776884]
[1734935275892,25.56587804,183.97,183.9,23.776884]
[1734935277985,0.32078033,183.96,183.9,23.776884]
[1734935278461,25.56587804,183.97,183.9,23.776884]
[1734935279962,0.32078033,183.96,183.9,23.776884]
[1734935280396,25.56587804,183.97,183.9,23.776884]
[1734935281093,27.44745837,183.99,183.92,23.776884]
[1734935282594,25.56587804,183.97,183.92,23.776884]